fUST/lending_fUST_20240720
["ID","MTS","AMOUNT","RATE_DAILY","PERIOD"]
[332657553,1721406647776,-506.53,0.00019178,2]
[332657555,1721406647786,-500.0,0.00019178,2]
[332657557,1721406647796,-500.0,0.00019178,2]
[332657560,1721406647808,-500.0,0.00019178,2]
[332657562,1721406647818,-502.96456176,0.00019178,2]
[332657564,1721406647827,-500.0,0.00019178,2]
[332657566,1721406647838,-500.0,0.00019178,2]
[332657568,1721406647848,-519.61993245,0.00019178,2]
[332657570,1721406647859,-551.75958219,0.00019178,2]
[332657572,1721406647868,-500.0,0.00019178,2]
[332657574,1721406647877,-1144.96,0.00019178,2]
[332657576,1721406647887,-500.0,0.00019178,2]
[332657578,1721406647897,-328.72391075,0.00019178,2]
[332657580,1721406647907,-500.0,0.00019178,2]
[332657582,1721406647918,-500.0,0.00019178,2]
[332657584,1721406647927,-500.0,0.00019178,2]
[332657586,1721406647938,-517.06325331,0.00019178,2]
[332657588,1721406647948,-500.0,0.00019178,2]
[332657590,1721406647957,-163.517984,0.00019178,2]
[332657591,1721406647967,-550.0,0.00019178,2]
[332657593,1721406647976,-157.684751,0.00019178,2]
[332657595,1721406647986,-157.684751,0.00019178,2]
[332657597,1721406647995,-157.684751,0.00019178,2]
[332657599,1721406648005,-157.684751,0.00019178,2]
[332657601,1721406648014,-157.684751,0.00019178,2]
[332657603,1721406648023,-157.684751,0.00019178,2]
[332657605,1721406648033,-157.684751,0.00019178,2]
[332657607,1721406648043,-157.684751,0.00019178,2]
[332657609,1721406648052,-157.684751,0.00019178,2]
[332657611,1721406648062,-157.684751,0.00019178,2]
[332657613,1721406648073,-157.684751,0.00019178,2]
[332657615,1721406648083,-157.684751,0.00019178,2]
[332657617,1721406648094,-157.684751,0.00019178,2]
[332657619,1721406648104,-157.684751,0.00019178,2]
[332657621,1721406648118,-157.684751,0.00019178,2]
[332657623,1721406648128,-157.684751,0.00019178,2]
[332657625,1721406648138,-157.684751,0.00019178,2]
[332657627,1721406648148,-157.684751,0.00019178,2]
[332657630,1721406648157,-157.684751,0.00019178,2]
[332657632,1721406648167,-157.684753,0.00019178,2]
[332657634,1721406648177,-500.0,0.00019179,2]
[332657637,1721406648198,-500.0,0.00019179,2]
[332657639,1721406648208,-500.0,0.00019179,2]
[332657641,1721406648219,-319.62731158,0.00019179,2]
[332657643,1721406648230,-500.0,0.00019179,2]
[332657645,1721406648240,-276.61731494,0.00019179,2]
[332657647,1721406648251,-500.0,0.00019179,2]
[332657650,1721406648261,-324.08284502,0.00019179,2]
[332657652,1721406648272,-500.0,0.00019179,2]
[332657654,1721406648283,-500.0,0.00019179,2]
[332657656,1721406648294,-500.0,0.00019179,2]
[332657658,1721406648304,-400.0,0.00019179,2]
[332657660,1721406648315,-500.0,0.00019179,2]
[332657662,1721406648325,-5155.81117331,0.0001918,2]
[332657726,1721406649018,-1006.98967796,0.0001918,2]
[332657728,1721406649029,-166.666668,0.00019181,2]
[332657730,1721406649040,-227.0,0.00019194,2]
[332657733,1721406649051,-151.0,0.00019194,2]
[332657735,1721406649062,-425.565,0.000192,2]
[332657737,1721406649072,-152.023208,0.00019253,2]
[332657739,1721406649082,-182.333045,0.00019253,2]
[332657741,1721406649093,-624.01,0.00019255,2]
[332657743,1721406649104,-160.0,0.00019276,3]
[332657744,1721406649115,-153.0,0.00019315,2]
[332657746,1721406649126,-153.0,0.00019315,2]
[332657747,1721406649136,-153.0,0.00019315,2]
[332657748,1721406649146,-227.0,0.00019323,2]
[332657749,1721406649157,-151.0,0.00019323,2]
[332657750,1721406649169,-303.888409,0.00019339,2]
[332657751,1721406649180,-380.058021,0.00019339,2]
[332657752,1721406649192,-151.944205,0.00019339,2]
[332657753,1721406649203,-151.944205,0.00019339,2]
[332657754,1721406649213,-190.029012,0.00019339,2]
[332657755,1721406649225,-190.02901,0.00019339,2]
[332657756,1721406649236,-190.029011,0.00019339,2]
[332657757,1721406649246,-151.944205,0.00019339,2]
[332657758,1721406649257,-151.944204,0.00019339,2]
[332657759,1721406649268,-4658.27354146,0.00019352,2]
[332657760,1721406649279,-166.666668,0.00019373,2]
[332657761,1721406649290,-119.88818346,0.00019391,2]
[332657762,1721406649303,-766.81588035,0.00019391,2]
[332657763,1721406649313,-9665.18,0.0001944,2]
[332657764,1721406649324,-624.01,0.00019441,2]
[332657765,1721406649335,-611.44,0.0001945,2]
[332657767,1721406649349,-611.44,0.0001945,2]
[332657769,1721406649361,-9665.18,0.0001945,2]
[332657771,1721406649372,-9665.18,0.0001945,2]
[332657773,1721406649382,-9665.18,0.0001945,2]
[332657775,1721406649393,-9665.18,0.0001945,2]
[332657777,1721406649403,-9665.18,0.0001945,2]
[332657779,1721406649414,-4395.67377563,0.0001945,2]
[332657781,1721406649427,-5269.63216791,0.0001945,2]
[332657783,1721406649437,-624.01,0.0001945,2]
[332657785,1721406649448,-624.01,0.0001945,2]
[332657787,1721406649458,-624.01,0.0001945,2]
[332657789,1721406649468,-624.01,0.0001945,2]
[332657791,1721406649479,-624.20190846,0.0001945,2]
[332657803,1721406649587,-2654.25,0.00019451,2]
[332657805,1721406649599,-2654.25,0.00019451,2]
[332657807,1721406649611,-2654.25,0.00019451,2]
[332657809,1721406649622,-2654.25,0.00019451,2]
[332657811,1721406649634,-2654.25,0.00019451,2]
[332657812,1721406649643,-2654.25,0.00019451,2]
[332657814,1721406649653,-2654.25,0.00019451,2]
[332657817,1721406649667,-2654.25,0.00019451,2]
[332657819,1721406649677,-2654.25,0.00019451,2]
[332657821,1721406649688,-2654.25,0.00019451,2]
[332657823,1721406649700,-2654.25,0.00019451,2]
[332657825,1721406649711,-2654.25,0.00019451,2]
[332657827,1721406649724,-2654.25,0.00019451,2]
[332657829,1721406649738,-2654.25,0.00019451,2]
[332657830,1721406649749,-2654.25,0.00019451,2]
[332657832,1721406649760,-2654.25,0.00019451,2]
[332657834,1721406649770,-2654.25,0.00019451,2]
[332657836,1721406649780,-2654.25,0.00019451,2]
[332657838,1721406649793,-2654.25,0.00019451,2]
[332657840,1721406649804,-2654.25,0.00019451,2]
[332657842,1721406649816,-2654.25,0.00019451,2]
[332657844,1721406649827,-2654.25,0.00019451,2]
[332657846,1721406649838,-2654.3984802,0.00019451,2]
[332657848,1721406649848,-611.44,0.00019451,2]
[332657850,1721406649858,-611.44,0.00019451,2]
[332657852,1721406649873,-611.44,0.00019451,2]
[332657854,1721406649883,-611.44,0.00019451,2]
[332657856,1721406649895,-611.61,0.00019451,2]
[332657858,1721406649906,-154.96065303,0.00019451,2]
[332657860,1721406649918,-1107.38930569,0.00019451,2]
[332657862,1721406649929,-848.15467958,0.00019451,2]
[332657863,1721406649939,-15611.14395798,0.00019452,5]
[332657865,1721406649949,-425.28408714,0.00019452,2]
[332657867,1721406649959,-985.01,0.00019452,2]
[332657869,1721406649968,-1088.88,0.00019452,2]
[332657871,1721406649978,-452.41416163,0.00019452,2]
[332657873,1721406649987,-500.0,0.00019452,2]
[332657875,1721406649997,-500.0,0.00019452,2]
[332657877,1721406650007,-1083.11,0.00019452,2]
[332657879,1721406650019,-154.4070138,0.00019452,2]
[332657881,1721406650029,-507.31,0.00019452,2]
[332657883,1721406650039,-500.0,0.00019452,2]
[332657885,1721406650050,-8133.28,0.00019452,2]
[332657887,1721406650060,-780.76,0.00019452,2]
[332657889,1721406650070,-500.0,0.00019452,2]
[332657891,1721406650080,-2025.34,0.00019452,2]
[332657893,1721406650091,-508.15951522,0.00019452,2]
[332657895,1721406650101,-1656.47,0.00019452,2]
[332657897,1721406650113,-500.0,0.00019452,2]
[332657899,1721406650122,-500.0,0.00019452,2]
[332657901,1721406650133,-500.0,0.00019452,2]
[332657903,1721406650144,-2003.21,0.00019452,2]
[332657905,1721406650154,-500.0,0.00019452,2]
[332657907,1721406650164,-1288.05,0.00019452,2]
[332657909,1721406650174,-500.0,0.00019452,2]
[332657911,1721406650183,-500.0,0.00019452,2]
[332657913,1721406650193,-500.0,0.00019452,2]
[332657917,1721406650215,-4611.36,0.00019452,2]
[332657919,1721406650227,-500.0,0.00019452,2]
[332657921,1721406650237,-500.0,0.00019452,2]
[332657923,1721406650247,-500.0,0.00019452,2]
[332657925,1721406650257,-10943.77,0.00019452,2]
[332657927,1721406650267,-500.0,0.00019452,2]
[332657929,1721406650278,-500.0,0.00019452,2]
[332657931,1721406650288,-3182.45,0.00019452,2]
[332657933,1721406650297,-1876.33,0.00019452,2]
[332657935,1721406650308,-695.46,0.00019452,2]
[332657937,1721406650318,-500.0,0.00019452,2]
[332657939,1721406650328,-500.0,0.00019452,2]
[332657941,1721406650339,-827.81,0.00019452,2]
[332657943,1721406650350,-2418.95,0.00019452,2]
[332657945,1721406650363,-500.0,0.00019452,2]
[332657947,1721406650373,-3627.31,0.00019452,2]
[332657949,1721406650384,-500.0,0.00019452,2]
[332657951,1721406650393,-500.0,0.00019452,2]
[332657953,1721406650404,-571.62,0.00019452,2]
[332657955,1721406650414,-3589.56,0.00019452,2]
[332657957,1721406650424,-500.0,0.00019452,2]
[332657959,1721406650434,-500.0,0.00019452,2]
[332657961,1721406650443,-1421.15,0.00019452,2]
[332657963,1721406650454,-1248.58,0.00019452,2]
[332657965,1721406650463,-2220.11,0.00019452,2]
[332657967,1721406650473,-1560.65,0.00019452,2]
[332657969,1721406650483,-745.79,0.00019452,2]
[332657971,1721406650492,-822.69,0.00019452,2]
[332657972,1721406650501,-500.0,0.00019452,2]
[332657974,1721406650511,-2087.32,0.00019452,2]
[332657976,1721406650521,-500.0,0.00019452,2]
[332657978,1721406650530,-521.34,0.00019452,2]
[332657980,1721406650539,-1094.19,0.00019452,2]
[332657982,1721406650549,-500.0,0.00019452,2]
[332657984,1721406650559,-9206.33,0.00019452,2]
[332657987,1721406650569,-322.47839093,0.00019452,2]
[332657989,1721406650579,-559.16,0.00019452,2]
[332657991,1721406650591,-6263.63,0.00019452,2]
[332657993,1721406650600,-506.15910077,0.00019452,2]
[332657995,1721406650610,-500.0,0.00019452,2]
[332657997,1721406650623,-19533.65,0.00019452,2]
[332657999,1721406650635,-500.0,0.00019452,2]
[332658000,1721406650644,-500.0,0.00019452,2]
[332658003,1721406650654,-500.0,0.00019452,2]
[332658005,1721406650667,-624.68,0.00019452,2]
[332658007,1721406650677,-500.0,0.00019452,2]
[332658009,1721406650687,-500.0,0.00019452,2]
[332658011,1721406650699,-500.0,0.00019452,2]
[332658013,1721406650710,-500.0,0.00019452,2]
[332658015,1721406650719,-2847.82,0.00019452,2]
[332658017,1721406650729,-3087.9,0.00019452,2]
[332658019,1721406650739,-979.77363766,0.00019452,2]
[332658053,1721406651069,-99.04636234,0.00019452,2]
[332658055,1721406651079,-500.0,0.00019452,2]
[332658057,1721406651090,-5639.96,0.00019452,2]
[332658059,1721406651099,-500.0,0.00019452,2]
[332658061,1721406651109,-3394.5,0.00019452,2]
[332658063,1721406651120,-647.98,0.00019452,2]
[332658065,1721406651129,-500.0,0.00019452,2]
[332658067,1721406651139,-2571.9,0.00019452,2]
[332658069,1721406651149,-500.0,0.00019452,2]
[332658071,1721406651159,-2836.33,0.00019452,2]
[332658073,1721406651170,-500.0,0.00019452,2]
[332658075,1721406651180,-3048.31,0.00019452,2]
[332658077,1721406651189,-500.0,0.00019452,2]
[332658079,1721406651199,-957.96,0.00019452,2]
[332658081,1721406651209,-500.0,0.00019452,2]
[332658083,1721406651219,-906.4,0.00019452,2]
[332658085,1721406651230,-500.0,0.00019452,2]
[332658087,1721406651240,-946.63,0.00019452,2]
[332658089,1721406651250,-500.0,0.00019452,2]
[332658091,1721406651260,-500.0,0.00019452,2]
[332658093,1721406651270,-500.0,0.00019452,2]
[332658095,1721406651280,-500.0,0.00019452,2]
[332658097,1721406651289,-9062.72,0.00019452,2]
[332658099,1721406651300,-500.0,0.00019452,2]
[332658101,1721406651309,-500.0,0.00019452,2]
[332658103,1721406651320,-500.0,0.00019452,2]
[332658105,1721406651330,-3263.67,0.00019452,2]
[332658107,1721406651340,-838.28,0.00019452,2]
[332658109,1721406651350,-500.0,0.00019452,2]
[332658111,1721406651360,-5989.54,0.00019452,2]
[332658113,1721406651370,-500.0,0.00019452,2]
[332658115,1721406651379,-711.32,0.00019452,2]
[332658117,1721406651389,-1110.11,0.00019452,2]
[332658119,1721406651399,-952.97,0.00019452,2]
[332658121,1721406651408,-1726.37,0.00019452,2]
[332658123,1721406651419,-513.08,0.00019452,2]
[332658125,1721406651429,-500.0,0.00019452,2]
[332658127,1721406651439,-500.0,0.00019452,2]
[332658129,1721406651448,-500.0,0.00019452,2]
[332658131,1721406651458,-533.42204302,0.00019452,2]
[332658133,1721406651467,-500.0,0.00019452,2]
[332658135,1721406651476,-500.0,0.00019452,2]
[332658137,1721406651486,-1016.29,0.00019452,2]
[332658139,1721406651496,-1998.45,0.00019452,2]
[332658141,1721406651506,-13765.61,0.00019452,2]
[332658143,1721406651515,-1128.98,0.00019452,2]
[332658145,1721406651526,-500.0,0.00019452,2]
[332658147,1721406651536,-675.58,0.00019452,2]
[332658149,1721406651545,-500.0,0.00019452,2]
[332658151,1721406651555,-2614.32,0.00019452,2]
[332658153,1721406651565,-1679.75,0.00019452,2]
[332658155,1721406651574,-500.0,0.00019452,2]
[332658157,1721406651584,-1066.74,0.00019452,2]
[332658159,1721406651595,-500.0,0.00019452,2]
[332658161,1721406651604,-500.0,0.00019452,2]
[332658163,1721406651616,-500.0,0.00019452,2]
[332658165,1721406651627,-618.64014095,0.00019452,2]
[332658173,1721406651694,-36.82985905,0.00019452,2]
[332658175,1721406651705,-500.0,0.00019452,2]
[332658177,1721406651716,-2426.06,0.00019452,2]
[332658179,1721406651726,-15162.35,0.00019452,2]
[332658181,1721406651736,-500.0,0.00019452,2]
[332658183,1721406651746,-554.13077569,0.00019452,2]
[332658185,1721406651756,-500.0,0.00019452,2]
[332658187,1721406651766,-507.53745879,0.00019452,2]
[332658189,1721406651776,-1270.03,0.00019452,2]
[332658191,1721406651786,-2009.02,0.00019452,2]
[332658192,1721406651796,-1325.09,0.00019452,2]
[332658194,1721406651806,-602.61,0.00019452,2]
[332658196,1721406651816,-39163.59,0.00019452,2]
[332658198,1721406651826,-1255.97,0.00019452,2]
[332658199,1721406651836,-3984.82,0.00019452,2]
[332658200,1721406651846,-4012.72,0.00019452,2]
[332658201,1721406651856,-502.22605208,0.00019452,2]
[332658202,1721406651867,-1559.26,0.00019452,2]
[332658203,1721406651876,-500.0,0.00019452,2]
[332658204,1721406651887,-500.0,0.00019452,2]
[332658206,1721406651897,-1790.21,0.00019452,2]
[332658208,1721406651907,-500.0,0.00019452,2]
[332658210,1721406651917,-1478.94,0.00019452,2]
[332658212,1721406651927,-500.0,0.00019452,2]
[332658214,1721406651937,-343.88461004,0.00019452,2]
[332658216,1721406651948,-506.21936313,0.00019452,2]
[332658218,1721406651959,-500.0,0.00019452,2]
[332658220,1721406651969,-500.0,0.00019452,2]
[332658222,1721406651979,-1716.12,0.00019452,2]
[332658225,1721406651990,-500.0,0.00019452,2]
[332658227,1721406652000,-500.0,0.00019452,2]
[332658229,1721406652010,-2854.0,0.00019452,2]
[332658231,1721406652020,-544.27604735,0.00019452,2]
[332658233,1721406652031,-1987.09,0.00019452,2]
[332658235,1721406652041,-500.0,0.00019452,2]
[332658237,1721406652052,-500.0,0.00019452,2]
[332658239,1721406652062,-2428.12,0.00019452,2]
[332658241,1721406652073,-1168.48,0.00019452,2]
[332658243,1721406652083,-505.54748683,0.00019452,2]
[332658245,1721406652093,-509.95752801,0.00019452,2]
[332658247,1721406652104,-764.59,0.00019452,2]
[332658249,1721406652117,-500.0,0.00019452,2]
[332658251,1721406652127,-2046.18,0.00019452,2]
[332658253,1721406652138,-500.0,0.00019452,2]
[332658256,1721406652150,-2045.86,0.00019452,2]
[332658258,1721406652160,-1550.38,0.00019452,2]
[332658260,1721406652173,-5968.37,0.00019452,2]
[332658262,1721406652183,-500.0,0.00019452,2]
[332658264,1721406652195,-500.0,0.00019452,2]
[332658266,1721406652205,-1777.9,0.00019452,2]
[332658268,1721406652216,-500.0,0.00019452,2]
[332658270,1721406652226,-2455.29,0.00019452,2]
[332658273,1721406652236,-557.67,0.00019452,2]
[332658275,1721406652248,-500.0,0.00019452,2]
[332658277,1721406652259,-500.0,0.00019452,2]
[332658279,1721406652269,-660.54,0.00019452,2]
[332658281,1721406652280,-500.0,0.00019452,2]
[332658283,1721406652290,-1278.72,0.00019452,2]
[332658285,1721406652301,-800.34,0.00019452,2]
[332658287,1721406652312,-500.0,0.00019452,2]
[332658289,1721406652323,-500.0,0.00019452,2]
[332658291,1721406652333,-2494.77,0.00019452,2]
[332658293,1721406652343,-500.0,0.00019452,2]
[332658296,1721406652354,-1300.11,0.00019452,2]
[332658298,1721406652367,-598.77,0.00019452,2]
[332658300,1721406652378,-1217.49,0.00019452,2]
[332658302,1721406652388,-500.0,0.00019452,2]
[332658304,1721406652399,-500.0,0.00019452,2]
[332658306,1721406652409,-500.0,0.00019452,2]
[332658308,1721406652419,-500.0,0.00019452,2]
[332658310,1721406652429,-500.0,0.00019452,2]
[332658312,1721406652440,-500.0,0.00019452,2]
[332658314,1721406652452,-500.0,0.00019452,2]
[332658317,1721406652463,-500.0,0.00019452,2]
[332658319,1721406652473,-500.0,0.00019452,2]
[332658321,1721406652483,-314.7,0.00019452,2]
[332658323,1721406652494,-786.25,0.00019452,2]
[332658325,1721406652504,-500.0,0.00019452,2]
[332658327,1721406652514,-500.0,0.00019452,2]
[332658329,1721406652526,-303.67894836,0.00019452,2]
[332658331,1721406652537,-500.0,0.00019452,2]
[332658333,1721406652549,-500.0,0.00019452,2]
[332658335,1721406652560,-511.10227379,0.00019452,2]
[332658338,1721406652571,-500.0,0.00019452,2]
[332658340,1721406652582,-500.0,0.00019452,2]
[332658342,1721406652592,-500.0,0.00019452,2]
[332658344,1721406652603,-500.0,0.00019452,2]
[332658346,1721406652614,-500.0,0.00019452,2]
[332658348,1721406652625,-500.0,0.00019452,2]
[332658350,1721406652637,-500.0,0.00019452,2]
[332658352,1721406652649,-173.04288054,0.00019452,2]
[332658354,1721406652659,-500.0,0.00019452,2]
[332658356,1721406652670,-500.0,0.00019452,2]
[332658358,1721406652681,-500.0,0.00019452,2]
[332658360,1721406652692,-511.96538163,0.00019452,2]
[332658362,1721406652704,-500.0,0.00019452,2]
[332658364,1721406652714,-500.0,0.00019452,2]
[332658366,1721406652724,-500.0,0.00019452,2]
[332658368,1721406652735,-500.0,0.00019452,2]
[332658370,1721406652745,-500.0,0.00019452,2]
[332658372,1721406652755,-500.0,0.00019452,2]
[332658375,1721406652766,-500.0,0.00019452,2]
[332658377,1721406652777,-500.0,0.00019452,2]
[332658379,1721406652787,-500.0,0.00019452,2]
[332658381,1721406652798,-500.0,0.00019452,2]
[332658383,1721406652809,-541.9480609,0.00019452,2]
[332658385,1721406652819,-500.0,0.00019452,2]
[332658387,1721406652830,-526.07,0.00019452,2]
[332658389,1721406652841,-500.0,0.00019452,2]
[332658391,1721406652852,-500.0,0.00019452,2]
[332658393,1721406652864,-500.0,0.00019452,2]
[332658395,1721406652874,-500.0,0.00019452,2]
[332658397,1721406652884,-500.0,0.00019452,2]
[332658399,1721406652894,-557.7890453,0.00019452,2]
[332658401,1721406652905,-500.0,0.00019452,2]
[332658403,1721406652916,-500.0,0.00019452,2]
[332658405,1721406652926,-502.19327455,0.00019452,2]
[332658408,1721406652937,-500.0,0.00019452,2]
[332658410,1721406652948,-500.0,0.00019452,2]
[332658412,1721406652959,-500.0,0.00019452,2]
[332658414,1721406652970,-500.0,0.00019452,2]
[332658416,1721406652981,-500.0,0.00019452,2]
[332658418,1721406652992,-500.0,0.00019452,2]
[332658420,1721406653003,-509.36186168,0.00019452,2]
[332658422,1721406653013,-500.0,0.00019452,2]
[332658424,1721406653023,-233.6381279,0.00019452,2]
[332658426,1721406653034,-500.0,0.00019452,2]
[332658428,1721406653044,-500.0,0.00019452,2]
[332658431,1721406653056,-500.0,0.00019452,2]
[332658433,1721406653067,-500.0,0.00019452,2]
[332658435,1721406653077,-500.0,0.00019452,2]
[332658437,1721406653090,-500.0,0.00019452,2]
[332658439,1721406653100,-500.0,0.00019452,2]
[332658441,1721406653110,-500.0,0.00019452,2]
[332658443,1721406653122,-500.0,0.00019452,2]
[332658445,1721406653133,-500.0,0.00019452,2]
[332658447,1721406653144,-500.0,0.00019452,2]
[332658449,1721406653154,-500.0,0.00019452,2]
[332658452,1721406653165,-500.0,0.00019452,2]
[332658454,1721406653176,-500.0,0.00019452,2]
[332658456,1721406653186,-500.0,0.00019452,2]
[332658458,1721406653196,-500.0,0.00019452,2]
[332658460,1721406653207,-500.0,0.00019452,2]
[332658462,1721406653219,-500.0,0.00019452,2]
[332658465,1721406653232,-246.6839164,0.00019452,2]
[332658467,1721406653242,-500.0,0.00019452,2]
[332658469,1721406653255,-500.0,0.00019452,2]
[332658471,1721406653265,-500.0,0.00019452,2]
[332658473,1721406653276,-500.0,0.00019452,2]
[332658475,1721406653287,-505.7498757,0.00019452,2]
[332658478,1721406653297,-500.0,0.00019452,2]
[332658480,1721406653306,-500.0,0.00019452,2]
[332658482,1721406653316,-504.22812036,0.00019452,2]
[332658484,1721406653327,-500.0,0.00019452,2]
[332658486,1721406653337,-326.0503484,0.00019452,2]
[332658488,1721406653348,-500.0,0.00019452,2]
[332658490,1721406653359,-556.02474155,0.00019452,2]
[332658492,1721406653371,-500.0,0.00019452,2]
[332658494,1721406653381,-500.0,0.00019452,2]
[332658497,1721406653393,-500.0,0.00019452,2]
[332658499,1721406653404,-614.78095237,0.00019452,2]
[332658501,1721406653417,-500.0,0.00019452,2]
[332658503,1721406653429,-500.0,0.00019452,2]
[332658505,1721406653440,-500.0,0.00019452,2]
[332658508,1721406653451,-500.0,0.00019452,2]
[332658510,1721406653461,-500.0,0.00019452,2]
[332658512,1721406653471,-500.0,0.00019452,2]
[332658514,1721406653482,-500.0,0.00019452,2]
[332658516,1721406653493,-500.0,0.00019452,2]
[332658518,1721406653504,-500.0,0.00019452,2]
[332658520,1721406653514,-500.0,0.00019452,2]
[332658522,1721406653525,-500.0,0.00019452,2]
[332658524,1721406653535,-500.0,0.00019452,2]
[332658527,1721406653545,-505.83772584,0.00019452,2]
[332658529,1721406653555,-500.0,0.00019452,2]
[332658531,1721406653565,-431.91893713,0.00019452,2]
[332658533,1721406653575,-514.10355527,0.00019452,2]
[332658535,1721406653585,-437.8,0.00019452,2]
[332658537,1721406653596,-211.69137716,0.00019452,2]
[332658539,1721406653606,-500.0,0.00019452,2]
[332658541,1721406653616,-500.0,0.00019452,2]
[332658543,1721406653628,-500.0,0.00019452,2]
[332658545,1721406653639,-500.0,0.00019452,2]
[332658547,1721406653651,-500.0,0.00019452,2]
[332658549,1721406653661,-300.2551871,0.00019452,2]
[332658551,1721406653671,-500.0,0.00019452,2]
[332658553,1721406653680,-503.51234351,0.00019452,2]
[332658556,1721406653691,-498.1774399,0.00019452,2]
[332658558,1721406653703,-500.0,0.00019452,2]
[332658560,1721406653715,-500.0,0.00019452,2]
[332658562,1721406653724,-500.0,0.00019452,2]
[332658564,1721406653735,-500.0,0.00019452,2]
[332658566,1721406653746,-500.0,0.00019452,2]
[332658568,1721406653755,-500.0,0.00019452,2]
[332658570,1721406653765,-500.0,0.00019452,2]
[332658572,1721406653775,-500.0,0.00019452,2]
[332658574,1721406653784,-500.0,0.00019452,2]
[332658576,1721406653794,-525.66109851,0.00019452,2]
[332658579,1721406653804,-500.0,0.00019452,2]
[332658581,1721406653814,-500.0,0.00019452,2]
[332658583,1721406653824,-500.0,0.00019452,2]
[332658585,1721406653834,-500.0,0.00019452,2]
[332658587,1721406653844,-500.0,0.00019452,2]
[332658589,1721406653854,-500.0,0.00019452,2]
[332658591,1721406653866,-502.47112183,0.00019452,2]
[332658593,1721406653876,-500.0,0.00019452,2]
[332658595,1721406653886,-500.0,0.00019452,2]
[332658597,1721406653899,-500.0,0.00019452,2]
[332658599,1721406653908,-546.90778361,0.00019452,2]
[332658600,1721406653918,-500.0,0.00019452,2]
[332658602,1721406653928,-561.97643977,0.00019452,2]
[332658605,1721406653937,-503.82780258,0.00019452,2]
[332658606,1721406653947,-500.0,0.00019452,2]
[332658609,1721406653957,-500.0,0.00019452,2]
[332658611,1721406653967,-500.0,0.00019452,2]
[332658613,1721406653976,-500.0,0.00019452,2]
[332658615,1721406653987,-504.63171882,0.00019452,2]
[332658617,1721406653997,-551.71117352,0.00019452,2]
[332658619,1721406654007,-500.0,0.00019452,2]
[332658621,1721406654017,-500.0,0.00019452,2]
[332658623,1721406654028,-500.0,0.00019452,2]
[332658625,1721406654038,-599.6110334,0.00019452,2]
[332658627,1721406654049,-500.0,0.00019452,2]
[332658629,1721406654058,-500.0,0.00019452,2]
[332658631,1721406654068,-500.0,0.00019452,2]
[332658633,1721406654078,-500.0,0.00019452,2]
[332658635,1721406654088,-500.0,0.00019452,2]
[332658637,1721406654098,-500.0,0.00019452,2]
[332658639,1721406654109,-500.0,0.00019452,2]
[332658641,1721406654121,-500.0,0.00019452,2]
[332658643,1721406654132,-500.0,0.00019452,2]
[332658645,1721406654143,-500.0,0.00019452,2]
[332658647,1721406654154,-500.0,0.00019452,2]
[332658649,1721406654164,-500.0,0.00019452,2]
[332658651,1721406654175,-500.0,0.00019452,2]
[332658653,1721406654185,-500.0,0.00019452,2]
[332658655,1721406654196,-500.0,0.00019452,2]